[Event "German Bundesliga 2022-23"]
[Site "Germany"]
[Date "2022.10.23"]
[Round "2.1"]
[White "Grandelius, Nils"]
[Black "Vitiugov, Nikita"]
[Result "1/2-1/2"]
[ECO "D43"]
[WhiteElo "2651"]
[BlackElo "2722"]
[Annotator "TA"]
[PlyCount "40"]
[EventDate "2022.10.21"]
[EventType "team-tourn"]
[EventCountry "GER"]
[SourceTitle "playchess.com"]
[Source "ChessBase"]
[SourceQuality "1"]
[TimeControl "40/6000+30:3000+30"]

{[%evp 13,40,3,-2,0,0,10,13,0,1,0,0,0,11,16,18,19,42,18,17,16,16,16,15,24,16,0,0,-10,-10]} 1. d4 {[%emt 0:00:12]} Nf6 {[%emt 0:01:01]} 2. Nf3 {[%emt 0:00:50]} d5 {[%emt 0:01:23]} 3. c4 {[%emt 0:01:02]} e6 {[%emt 0:02:15]} 4. Nc3 {[%emt 0:01:08]} c6 {[%emt 0:00:26]} 5. Qd3 {[%emt 0:00:50]} dxc4 {[%emt 0:06:01]} 6. Qxc4 {[%emt 0:00:29]} b5 {[%emt 0:00:06]} 7. Qd3 {[%emt 0:00:07]} Bb7 {[%emt 0:00:44]} 8. e4 {[%emt 0:01:17] D43: Semi-Slav: 5 Bg5 h6.} b4 {[%emt 0:00:48]} 9. Na4 {[%emt 0:00:34]} Qa5 {[%emt 0:00:07]} 10. b3 {[%emt 0:00:10]} c5 {[%emt 0:02:16]} 11. e5 {[%emt 0:08:13]} Nfd7 {[%emt 0:03:41]} 12. dxc5 {[%emt 0:10:31] [#]} Nxc5 $146 {[%emt 0:05:40]} ({Predecessor:} 12... Nc6 13. Bf4 Bxc5 14. Rd1 Rd8 15. Qb5 Qxb5 16. Bxb5 Be7 17. O-O O-O 18. Rc1 Rc8 {½-½ (41) Neagu,L (2556)-Stephan,J (2561) ICCF email 2012}) 13. Qb5+ {[%emt 0:08:28]} Qxb5 {[%emt 0:03:50]} 14. Bxb5+ {[%emt 0:00:05]} Ncd7 {[%emt 0:10:09]} 15. Bf4 {[%emt 0:19:51]} a6 {[%emt 0:04:54]} 16. Bd3 {[%emt 0:03:10]} Nc5 {[%emt 0:07:21]} 17. Nxc5 {[%emt 0:00:12]} Bxc5 {[%emt 0:00:04]} 18. Rc1 {[%emt 0:00:08]} Nd7 {[%emt 0:02:58]} 19. Ke2 {[%emt 0:01:52]} h6 {[%emt 0:06:57]} 20. h4 {[%emt 0:10:57]} Ke7 {[%emt 0:00:43] A balanced but interesting game.  Weighted Error Value: White=0.05 (flawless) /Black=0.02 (flawless)} 1/2-1/2

[Event "German Bundesliga 2022-23"]
[Site "Germany"]
[Date "2022.10.23"]
[Round "2.1"]
[White "Brkic, Ante"]
[Black "Navara, David"]
[Result "1/2-1/2"]
[ECO "C67"]
[WhiteElo "2602"]
[BlackElo "2676"]
[Annotator "TA"]
[PlyCount "61"]
[EventDate "2022.10.21"]
[EventType "team-tourn"]
[EventCountry "GER"]
[SourceTitle "playchess.com"]
[Source "ChessBase"]
[SourceQuality "1"]
[TimeControl "40/6000+30:3000+30"]

{[%evp 15,61,12,13,14,18,13,26,20,22,31,27,13,24,17,24,17,19,6,20,24,20,12,17,14,19,15,35,27,28,26,27,33,33,27,36,36,33,33,34,34,34,23,31,23,34,34,34,22]} 1. e4 {[%emt 0:00:04]} e5 {[%emt 0:00:49]} 2. Nf3 {[%emt 0:00:26]} Nc6 {[%emt 0:00:05]} 3. Bb5 {[%emt 0:00:12]} Nf6 {[%emt 0:00:07]} 4. O-O {[%emt 0:01:22][%cal Bh1f1,Bf1e1,Be1e5][%mdl 32]} Nxe4 {[%emt 0:00:09]} 5. Re1 {[%emt 0:00:58]} Nd6 {[%emt 0:00:05]} 6. Nxe5 {[%emt 0:00:15]} Be7 {[%emt 0:00:05]} 7. Bf1 {[%emt 0:00:40]} Nxe5 {[%emt 0:00:07]} 8. Rxe5 {[%emt 0:00:04]} O-O {[%emt 0:00:10]} 9. Nc3 {[%emt 0:00:50] C67: Ruy Lopez: Berlin Defence: 4 0-0 Nxe4.} Bf6 {[%emt 0:00:30]} 10. Re1 {[%emt 0:00:36]} Re8 {[%emt 0:01:05]} 11. Nd5 {[%emt 0:01:48] White has an edge.} Rxe1 {[%emt 0:01:28]} 12. Qxe1 {[%emt 0:00:06][%cal Od2d4]} b6 {[%emt 0:00:26]} 13. d3 {[%emt 0:02:32]} Bb7 {[%emt 0:00:32]} 14. Nxf6+ {[%emt 0:00:06]} Qxf6 {[%emt 0:00:09]} 15. Qe3 {[%emt 0:04:56]} c5 {[%emt 0:02:39]} 16. Qf4 {[%emt 0:01:20]} Nf5 {[%emt 0:04:47]} 17. c3 {[%emt 0:01:29]} Re8 {[%emt 0:06:53]} 18. Bd2 {[%emt 0:00:23]} h6 {[%emt 0:00:52]} 19. h3 {[%emt 0:07:02]} g5 {[%emt 0:18:56]} 20. Qg4 {[%emt 0:04:15] [#]} Bc6 $146 {[%emt 0:05:27]} ({Predecessor:} 20... Kg7 21. b4 Kg6 22. Rb1 d6 23. Qd1 Nh4 24. a4 Kh7 25. Qg4 Bf3 26. Qg3 Rg8 27. bxc5 dxc5 {½-½ (37) Klimczak,J (2300)-Siburian,C (2294) ICCF email 2020}) 21. f4 $1 {[%emt 0:11:04][%cal Bf2f4,Bf4g5][%mdl 32]} Ne3 {[%emt 0:00:24]} 22. fxg5 $1 {[%emt 0:02:43]} Qxf1+ {[%emt 0:00:11]} (22... Qxg5 $2 23. Qxg5+ hxg5 24. Re1 $18) ({Resist} 22... hxg5 23. Qe2 Qe7 24. Re1 Nxf1 25. Qxf1 $16 (25. Qxe7 Rxe7 26. Rxe7 Nxd2 $16)) 23. Rxf1 {[%emt 0:00:05] [#] Bxe3 would kill now.} Nxg4 {[%emt 0:00:09]} 24. hxg4 $11 {[%emt 0:00:05][%mdl 4096] Endgame KRB-KRB} Re2 {[%emt 0:00:42]} 25. Rf2 {[%emt 0:00:09]} Rxf2 {[%emt 0:00:06]} 26. Kxf2 {[%emt 0:00:04]} hxg5 {[%emt 0:00:08]} 27. Bxg5 $14 {[%emt 0:00:09] KB-KB} Kf8 {[%emt 0:00:05]} 28. g3 {[%emt 0:09:08]} Bd5 {[%emt 0:02:42]} 29. a3 {[%emt 0:00:22]} Bb3 {[%emt 0:01:57]} 30. Ke3 {[%emt 0:01:20]} d6 {[%emt 0:00:42]} 31. Bf6 {[%emt 0:00:43] Weighted Error Value: White=0.03 (flawless) /Black=0.03 (flawless)} 1/2-1/2

[Event "German Bundesliga 2022-23"]
[Site "Germany"]
[Date "2022.10.23"]
[Round "2.2"]
[White "Keymer, Vincent"]
[Black "Svane, Rasmus"]
[Result "1/2-1/2"]
[ECO "D35"]
[WhiteElo "2700"]
[BlackElo "2615"]
[Annotator "TA"]
[PlyCount "87"]
[EventDate "2022.10.21"]
[EventType "team-tourn"]
[EventCountry "GER"]
[SourceTitle "playchess.com"]
[Source "ChessBase"]
[SourceQuality "1"]
[TimeControl "40/6000+30:3000+30"]

{[%evp 12,87,0,0,0,0,0,-24,0,0,8,0,0,-1,0,0,0,0,0,0,0,-7,0,0,0,7,21,21,19,17,19,18,20,7,14,0,0,0,0,0,0,0,0,0,7,0,5,0,0,0,0,0,0,-28,-20,-16,-38,-34,-28,-33,-27,-62,-55,-80,-72,-72,0,-51,0,-52,-27,-45,0,-66,0,-42,0,-75]} 1. d4 {[%emt 0:00:17]} Nf6 {[%emt 0:00:25]} 2. c4 {[%emt 0:00:05]} e6 {[%emt 0:00:08]} 3. Nf3 {[%emt 0:00:04]} d5 {[%emt 0:00:10]} 4. cxd5 {[%emt 0:00:05]} exd5 {[%emt 0:00:15]} 5. Nc3 {[%emt 0:00:04]} c6 {[%emt 0:00:29]} 6. Bf4 {[%emt 0:00:05]} Bf5 {[%emt 0:01:12]} 7. e3 {[%emt 0:00:04]} Nbd7 {[%emt 0:00:45] D35: Queen's Gambit Declined: Exchange Variation.} 8. h3 {[%emt 0:00:14] is the new trend.} Qb6 {[%emt 0:03:16]} 9. Bd3 {[%emt 0:00:30]} Bxd3 {[%emt 0:00:16] Black has an edge.} 10. Qxd3 {[%emt 0:00:05]} Be7 {[%emt 0:00:13]} 11. O-O {[%emt 0:00:57][%cal Ob2b4]} O-O {[%emt 0:00:08] [#]} 12. Nh4 $146 {[%emt 0:00:30]} ({Predecessor:} 12. g4 Rfe8 13. g5 Ne4 14. Nxe4 dxe4 15. Qxe4 Bxg5 16. Qf5 Bxf4 17. Qxf4 Re6 18. b3 {1-0 (40) Degtiarev,E (2378)-Dalberg,P (2190) Copenhagen 2006}) 12... g6 {[%emt 0:12:56]} (12... Qxb2 13. Rab1 Qa3 14. Rb3 $16 (14. Rxb7 Bb4 $11)) 13. Nf3 {[%emt 0:00:27][%cal Bh4f3,Bf3e5,Be5d3,Bd3c5][%mdl 32]} Rfe8 {[%emt 0:03:28]} ({Much less strong is} 13... Qxb2 14. Rab1 Qa3 15. Rb3 $16 (15. Rxb7 Bb4 $15)) 14. Qc2 {[%emt 0:00:06]} Qd8 {[%emt 0:08:30]} 15. Rad1 {[%emt 0:08:51]} Nb6 {[%emt 0:15:38]} 16. Ne5 {[%emt 0:04:12]} Nh5 {[%emt 0:23:37]} 17. Bh2 {[%emt 0:01:46]} Bd6 {[%emt 0:01:39]} 18. Qb3 {[%emt 0:10:28]} f6 {[%emt 0:04:35]} 19. Nd3 {[%emt 0:05:11]} Bxh2+ {[%emt 0:00:08]} 20. Kxh2 {[%emt 0:00:03]} Qc7+ {[%emt 0:03:58]} 21. Kg1 {[%emt 0:00:38]} Qf7 {[%emt 0:02:07]} 22. Qb4 {[%emt 0:05:48]} Rad8 {[%emt 0:04:35]} 23. Nc5 {[%emt 0:07:12]} Re7 {[%emt 0:01:12]} 24. Qa5 {[%emt 0:12:58]} Ra8 {[%emt 0:04:48]} 25. b3 {[%emt 0:02:18] Against Nc4} Nc8 {[%emt 0:03:07]} 26. Qa3 {[%emt 0:02:18]} Nd6 {[%emt 0:00:56]} 27. Nd3 {[%emt 0:00:57]} Rd7 {[%emt 0:04:43]} 28. Rfe1 {[%emt 0:06:48]} Ng7 {[%emt 0:02:16]} 29. e4 {[%emt 0:04:42]} Nxe4 {[%emt 0:01:18]} 30. Nxe4 {[%emt 0:00:07]} dxe4 {[%emt 0:00:02]} 31. Rxe4 {[%emt 0:00:15]} Nf5 {[%emt 0:02:11]} 32. Rde1 {[%emt 0:05:49]} b6 {[%emt 0:01:45]} 33. Nf4 {[%emt 0:05:06]} Nd6 {[%emt 0:02:00]} ({Of course not} 33... Nxd4 $6 34. Qb2 c5 35. Ne6 $15) ({Don't do} 33... Rxd4 34. Rxd4 Nxd4 35. Re7 $16) 34. R4e3 {[%emt 0:12:11]} Nb5 {[%emt 0:00:06]} 35. Qc1 {[%emt 0:02:03]} Nxd4 {[%emt 0:00:18]} 36. Ne6 {[%emt 0:00:04] [#] aiming for Nxd4.} c5 {[%emt 0:01:40]} 37. Kh2 {[%emt 0:02:36]} Nf5 {[%emt 0:01:28]} 38. R3e2 {[%emt 0:02:47]} Nd4 {[%emt 0:01:14]} (38... Re7 $17) 39. Re4 {[%emt 0:00:11]} ({White should play} 39. Re3 $1 $11) 39... Nf5 {[%emt 0:00:56]} (39... Nc6 $15) 40. Qf4 {[%emt 0:08:13]} (40. R4e2 $1 $11) 40... Nd6 {[%emt 0:01:26]} 41. R4e2 {[%emt 0:09:06]} Nf5 {[%emt 0:22:52]} 42. Re4 {[%emt 0:12:49]} Nd6 {[%emt 0:05:45]} 43. R4e2 {[%emt 0:00:57]} Nf5 {[%emt 0:00:25]} 44. Re4 {[%emt 0:05:32] Weighted Error Value: White=0.10 (very precise) /Black=0.11 (very precise)} (44. Qc1 $11) 1/2-1/2

[Event "German Bundesliga 2022-23"]
[Site "Germany"]
[Date "2022.10.23"]
[Round "2.2"]
[White "Nguyen, Thai Dai Van"]
[Black "Markus, Robert"]
[Result "1-0"]
[ECO "E94"]
[WhiteElo "2634"]
[BlackElo "2615"]
[Annotator "TA"]
[PlyCount "81"]
[EventDate "2022.10.21"]
[EventType "team-tourn"]
[EventCountry "GER"]
[SourceTitle "playchess.com"]
[Source "ChessBase"]
[SourceQuality "1"]
[TimeControl "40/6000+30:3000+30"]

{[%evp 18,81,78,61,79,60,63,62,71,67,52,37,61,33,53,65,69,51,38,48,48,36,52,54,55,60,62,66,57,25,53,60,63,42,56,38,54,54,70,79,56,35,56,47,55,79,85,113,230,230,230,230,230,230,230,230,715,694,688,678,639,627,29988,29989,29989,29990]} 1. d4 {[%emt 0:02:38]} Nf6 {[%emt 0:00:09]} 2. c4 {[%emt 0:00:05]} d6 {[%emt 0:00:08]} 3. Nc3 {[%emt 0:00:20]} e5 {[%emt 0:00:14]} 4. Nf3 {[%emt 0:00:13]} Nbd7 {[%emt 0:00:08]} 5. e4 {[%emt 0:02:16]} g6 {[%emt 0:00:21]} 6. Be2 {[%emt 0:00:23]} Bg7 {[%emt 0:00:07]} 7. O-O {[%emt 0:00:13]} O-O {[%emt 0:00:07]} 8. Be3 {[%emt 0:00:06]} c6 {[%emt 0:03:00]} 9. d5 {[%emt 0:07:25]} Qe7 {[%emt 0:00:49]} 10. Qc2 {[%emt 0:00:27]} Ng4 {[%emt 0:01:12] E94: King's Indian: Classical: 6 Be2 e5 7 0-0: Various Black 7th moves.} 11. Bg5 {[%emt 0:01:09]} f6 {[%emt 0:00:08]} 12. Bd2 {[%emt 0:00:10]} Nh6 {[%emt 0:01:53] White is slightly better.} 13. b4 {[%emt 0:03:28] White is much more active.} Nf7 {[%emt 0:02:29] [#]} 14. dxc6 $146 {[%emt 0:16:49]} ({Predecessor:} 14. Rab1 c5 15. a3 b6 16. Bd3 Nb8 17. Nb5 Na6 18. Ne1 Bd7 19. f4 Rfc8 20. Qb3 {0-1 (52) Radovanovic,J (2367)-Damljanovic,B (2543) Banja Vrujci 2017}) 14... bxc6 {[%emt 0:02:19]} 15. Rab1 {[%emt 0:00:07]} Bb7 {[%emt 0:13:01]} 16. Rfd1 {[%emt 0:05:43]} Rfd8 {[%emt 0:03:33]} 17. Be3 {[%emt 0:09:42]} Bh6 {[%emt 0:06:44]} 18. Bxh6 {[%emt 0:02:11]} Nxh6 {[%emt 0:00:07]} 19. Nd2 {[%emt 0:00:13][%cal Bf3d2,Bd2b3,Bb3c5][%mdl 32]} Nf8 {[%emt 0:06:20]} 20. Nb3 {[%emt 0:01:37]} Ne6 {[%emt 0:06:31] Inhibits c5.} 21. c5 {[%emt 0:14:52]} dxc5 {[%emt 0:03:35]} 22. Nxc5 {[%emt 0:02:20]} Rxd1+ {[%emt 0:17:02]} 23. Nxd1 {[%emt 0:01:22]} Nxc5 {[%emt 0:03:31]} 24. Qxc5 {[%emt 0:02:12]} Kf8 {[%emt 0:03:34]} 25. Qe3 {[%emt 0:06:00]} Nf7 {[%emt 0:00:22]} 26. Nc3 {[%emt 0:00:09]} a5 {[%emt 0:01:43]} 27. bxa5 {[%emt 0:01:28]} Rxa5 {[%emt 0:01:39]} 28. a4 $36 {[%emt 0:01:07][%mdl 2048] White is on the roll.} Qc7 {[%emt 0:08:02]} 29. h4 {[%emt 0:06:35]} Ba6 {[%emt 0:02:19] Against Bc4} 30. Bg4 {[%emt 0:03:45]} Bc8 {[%emt 0:02:29] Prevents Be6.} 31. Bxc8 {[%emt 0:01:26]} Qxc8 {[%emt 0:00:06]} 32. Qb6 {[%emt 0:00:15] Against Qc7} Ra8 {[%emt 0:02:15] [#]} (32... Ra6 $16 33. Qc5+ Kg7) 33. Qc5+ $1 $18 {[%emt 0:04:15]} Kg7 {[%emt 0:00:09] [#]} 34. Rb6 $1 {[%emt 0:01:11]} Ra6 {[%emt 0:10:29]} 35. a5 {[%emt 0:01:48]} Qa8 {[%emt 0:00:06]} 36. Qb4 {[%emt 0:05:50]} Qc8 {[%emt 0:06:13]} (36... Rxa5 37. Rb8 c5 38. Rxa8 cxb4 39. Rxa5 bxc3) 37. Rxa6 {[%emt 0:01:56]} Qxa6 {[%emt 0:00:05]} 38. Na4 {[%emt 0:00:13] Threatens to win with Nc5.} Qe2 {[%emt 0:05:32]} 39. Nc5 {[%emt 0:00:06] Ne6+ would kill now.} Qa2 {[%emt 0:00:55] Against Ne6+} 40. Nd7 {[%emt 0:02:11][%csl Gd7][%cal Rb4f8]} Kh6 {[%emt 0:00:33]} 41. g4 {[%emt 0:51:53] Weighted Error Value: White=0.05 (flawless) /Black=0.35} 1-0

[Event "German Bundesliga 2022-23"]
[Site "Germany"]
[Date "2022.10.23"]
[Round "2.2"]
[White "Bartel, Mateusz"]
[Black "Santos Latasa, Jaime"]
[Result "1/2-1/2"]
[ECO "C78"]
[WhiteElo "2630"]
[BlackElo "2677"]
[Annotator "TA"]
[PlyCount "103"]
[EventDate "2022.10.21"]
[EventType "team-tourn"]
[EventCountry "GER"]
[SourceTitle "playchess.com"]
[Source "ChessBase"]
[SourceQuality "1"]
[TimeControl "40/6000+30:3000+30"]

{[%evp 15,103,18,12,9,15,8,11,24,11,16,17,11,13,0,0,0,0,0,12,0,12,11,14,9,22,0,0,0,0,0,22,0,8,12,18,18,18,20,28,21,18,16,20,17,54,54,54,53,58,57,76,52,52,52,52,52,52,52,52,52,52,52,52,52,52,52,52,52,52,52,52,52,53,52,53,52,54,22,39,23,23,8,8,8,8,8,8,8,8,0]} 1. e4 {[%emt 0:00:04]} e5 {[%emt 0:00:09]} 2. Nf3 {[%emt 0:00:07]} Nc6 {[%emt 0:00:03]} 3. Bb5 {[%emt 0:00:07]} a6 {[%emt 0:00:08]} 4. Ba4 {[%emt 0:00:05]} Nf6 {[%emt 0:00:05]} 5. O-O {[%emt 0:00:07]} b5 {[%emt 0:00:08]} 6. Bb3 {[%emt 0:00:07]} Bc5 {[%emt 0:00:04]} 7. c3 {[%emt 0:00:38]} d6 {[%emt 0:00:29]} 8. d3 {[%emt 0:00:06]} h6 {[%emt 0:00:27]} 9. h3 {[%emt 0:02:12] 9.Nbd2 is more advanced technology. C78: Ruy Lopez: Archangelsk and Möller Defences.} O-O {[%emt 0:00:37]} 10. Nbd2 {[%emt 0:00:06]} Bb6 {[%emt 0:00:35]} 11. Re1 {[%emt 0:00:06]} Ne7 {[%emt 0:00:08]} 12. a4 {[%emt 0:00:05]} Rb8 {[%emt 0:00:07]} 13. d4 {[%emt 0:00:49]} Ng6 {[%emt 0:03:50]} 14. a5 {[%emt 0:00:49]} Ba7 {[%emt 0:00:06]} 15. Nf1 {[%emt 0:00:33]} c5 {[%emt 0:00:15] [#]} 16. Ng3 $146 {[%emt 0:04:06]} ({Predecessor:} 16. Bc2 c4 17. Be3 Qc7 18. Qd2 Nh5 19. N1h2 Nhf4 20. h4 f6 21. g3 Ne6 22. b4 {½-½ (34) Shachar,E (2356)-Soffer,R (2488) Tiberias 2016}) 16... Qc7 {[%emt 0:01:47]} 17. Bd2 {[%emt 0:06:16]} Re8 {[%emt 0:11:20]} 18. Qc1 {[%emt 0:03:34][%cal Od2h6]} Kh7 {[%emt 0:07:44]} 19. Bc2 {[%emt 0:06:40]} Bd7 {[%emt 0:09:02]} (19... exd4 20. cxd4 c4 21. Bb4 $14 (21. e5 dxe5 22. dxe5 Bb7 $11)) 20. b4 {[%emt 0:18:57]} cxd4 {[%emt 0:04:35]} 21. cxd4 {[%emt 0:01:28]} Rbc8 {[%emt 0:16:06]} 22. Bb3 {[%emt 0:06:51]} Kg8 {[%emt 0:10:11]} 23. Bxh6 {[%emt 0:16:18] [#] Qg5 is the strong threat.} Qxc1 {[%emt 0:10:39]} (23... gxh6 $2 24. Qxh6 Be6 {[#]} 25. Nf5 $1 (25. Bxe6 fxe6 26. Qxg6+ Qg7 $18) 25... Bxf5 26. exf5 $18) 24. Bxc1 {[%emt 0:00:13]} exd4 {[%emt 0:00:04]} 25. Bb2 {[%emt 0:05:55]} Ne5 {[%emt 0:03:47]} ({Don't do} 25... d3 26. Bxf6 gxf6 27. Nh5 $14) 26. Rad1 {[%emt 0:00:07]} ({Worse is} 26. Nxd4 Nd3 27. Re2 Nxb2 $17) 26... Nxf3+ {[%emt 0:01:46]} 27. gxf3 {[%emt 0:00:03]} Bxh3 {[%emt 0:00:44]} 28. Bxd4 {[%emt 0:00:24]} Bxd4 {[%emt 0:00:25]} 29. Rxd4 {[%emt 0:00:03]} Be6 {[%emt 0:00:48]} 30. Bxe6 {[%emt 0:02:48]} Rxe6 {[%emt 0:00:06]} 31. Red1 {[%emt 0:00:58]} Ne8 {[%emt 0:00:09]} 32. Nf5 {[%emt 0:03:08][%cal Rf5d6]} g6 {[%emt 0:02:22]} 33. Nxd6 {[%emt 0:07:22] White is more active.} (33. Ne3 {seems wilder.} Re5 34. f4 Rh5 35. f3) 33... Nxd6 {[%emt 0:00:07]} 34. Rxd6 {[%emt 0:00:08]} Rxd6 {[%emt 0:00:03]} 35. Rxd6 $16 {[%emt 0:00:06][%mdl 4096] Endgame KR-KR} Rc4 $1 {[%emt 0:00:03]} 36. Rxa6 {[%emt 0:00:10]} Rxb4 {[%emt 0:00:05]} 37. Rb6 {[%emt 0:00:34]} Rb1+ {[%emt 0:00:38]} 38. Kg2 {[%emt 0:00:06]} b4 {[%emt 0:00:16]} 39. f4 {[%emt 0:01:50]} Ra1 {[%emt 0:00:28]} 40. Rxb4 {[%emt 0:00:07]} (40. a6 {keeps more tension.} b3 41. Kf3 b2 42. Rxb2 Rxa6 43. Kg4) 40... Rxa5 {[%emt 0:00:04]} 41. Kg3 {[%emt 0:50:05]} Kg7 {[%emt 0:50:13]} 42. Rb7 {[%emt 0:00:06]} Ra2 {[%emt 0:08:39]} 43. e5 {[%emt 0:01:09]} Re2 {[%emt 0:00:38]} 44. Rb5 {[%emt 0:01:16]} Re1 {[%emt 0:04:00]} 45. Kf3 {[%emt 0:01:40]} Ra1 {[%emt 0:02:02]} 46. f5 {[%emt 0:00:09] Hoping for f6+.} gxf5 {[%emt 0:00:49]} 47. Kf4 {[%emt 0:00:08]} f6 {[%emt 0:12:39]} 48. e6 {[%emt 0:11:15]} Kg6 {[%emt 0:00:07] The position is equal.} 49. Rb3 {[%emt 0:00:06] Intending Rg3+ and mate.} Ra4+ {[%emt 0:00:06]} 50. Kf3 {[%emt 0:00:06] And now Re3 would win.} Kg7 $1 {[%emt 0:00:12]} 51. Rb7+ {[%emt 0:00:07]} Kg6 {[%emt 0:00:35]} 52. Rb3 {[%emt 0:01:08] Weighted Error Value: White=0.05 (flawless) /Black=0.05 (flawless)} 1/2-1/2